bitfinex-derivatives/quotes_SOLF0:USTF0_20250224
["timestamp","ask_amount","ask_price","bid_price","bid_amount"]
[1740409795335,64.95,153.35,153.26,35.05275914]
[1740409795535,64.95,153.32,153.26,35.05275914]
[1740409795741,64.95,153.3,153.26,35.05275914]
[1740409795948,64.95,153.3,153.27,0.04131672]
[1740409796142,0.04877873,153.31,153.27,0.04131672]
[1740409796544,64.95,153.28,153.27,0.04131672]
[1740409796842,64.95,153.3,153.27,0.04131672]
[1740409797146,64.95,153.28,153.27,0.04131672]
[1740409797740,64.95,153.28,153.23,103.2536353]
[1740409797943,64.95,153.24,153.0,8.72969163]
[1740409798143,64.95,153.22,153.0,8.72969163]
[1740409798348,64.95,153.21,153.0,8.72969163]
[1740409798545,4.0666,153.3,153.0,8.72969163]
[1740409798749,64.95,153.16,153.04,170.56]
[1740409798948,4.0666,153.3,153.04,170.56]
[1740409798949,64.95,153.13,153.04,170.56]
[1740409799343,4.0666,153.3,153.04,170.56]
[1740409799546,64.95,153.11,153.04,170.56]
[1740409799746,64.95,153.14,153.04,170.56]
[1740409800145,3.9797,153.28,153.04,170.56]
[1740409800346,0.04342668,153.11,153.07,0.04677388]
[1740409800548,64.95,153.08,153.0,8.72969163]
[1740409800849,0.04372092,153.11,153.07,0.05012586]
[1740409801250,3.9797,153.28,153.08,170.56]
[1740409801446,0.04896088,153.11,153.08,170.7]
[1740409801651,170.7,153.49,153.08,172.0065064]
[1740409801850,64.95,153.35,153.09,0.1781]
[1740409802052,64.95,153.36,153.09,0.1781]
[1740409802254,64.95,153.36,153.1,1.30633572]
[1740409802443,64.95,153.28,153.1,1.30633572]
[1740409802643,7.8932,153.39,153.1,1.30633572]
[1740409802854,0.04696322,153.25,153.21,0.04325736]
[1740409803344,4.0663,153.38,153.1,1.30633572]
[1740409803652,64.95,153.22,153.21,0.04325045]
[1740409803851,64.95,153.2,153.1,1.30633572]
[1740409804152,4.0663,153.38,153.1,1.30633572]
[1740409804347,64.95,153.29,153.1,1.30633572]
[1740409804555,64.95,153.3,153.1,1.30633572]
[1740409804749,4.0663,153.38,153.1,1.30633572]
[1740409804944,64.95,153.22,153.1,1.30633572]
[1740409805148,64.95,153.2,153.18,0.04700715]
[1740409805348,5.37025097,153.38,153.1,1.30633572]
[1740409805548,64.95,153.24,153.17,0.04571188]
[1740409805744,0.05011743,153.21,153.17,0.04571188]
[1740409805945,1.30403599,153.37,153.1,1.30633572]
[1740409805946,64.95,153.29,153.1,1.30633572]
[1740409806145,0.04211882,153.21,153.17,0.04160424]
[1740409806350,64.95,153.31,153.17,0.04160424]
[1740409806547,4.0663,153.38,153.1,77.38452424]
[1740409806548,64.95,153.32,153.1,77.38452424]
[1740409806750,4.0663,153.38,153.1,1.30633572]
[1740409806953,64.95,153.21,153.1,1.30633572]
[1740409807457,0.04189271,153.17,153.14,0.04474284]
[1740409807859,3.8625,153.37,153.1,1.30633572]
[1740409808056,0.04437371,153.17,153.14,0.04544504]
[1740409808254,0.04437371,153.17,153.08,170.7]
[1740409808459,172.06412102,153.36,153.08,170.7]
[1740409808655,0.05010386,153.17,153.14,0.04383042]
[1740409808847,64.95,153.25,153.08,172.0065064]
[1740409809054,64.95,153.29,153.09,1.30642105]
[1740409809248,3.8625,153.37,153.14,0.04899412]
[1740409809449,1.14604918,153.36,153.09,1.30642105]
[1740409809655,64.95,153.3,153.09,1.30642105]
[1740409809855,3.8625,153.37,153.09,1.30642105]
[1740409810059,3.7682,153.35,153.09,1.30642105]
[1740409810259,64.95,153.29,153.09,1.30642105]
[1740409810557,0.04430241,153.24,153.2,0.04737323]
[1740409810756,3.7682,153.35,153.21,170.76]
[1740409810956,3.8625,153.37,153.21,170.76]
[1740409811157,3.7682,153.48,153.21,170.76]
[1740409811357,64.95,153.37,153.21,170.76]
[1740409811560,64.95,153.36,153.21,170.76]
[1740409811762,3.7682,153.48,153.21,170.76]
[1740409811962,0.0474682,153.3,153.27,0.04265871]
[1740409812154,3.7682,153.48,153.27,0.04265871]
[1740409812359,3.7682,153.48,153.21,209.92]
[1740409812760,3.8539,153.54,153.22,1.19870357]
[1740409813067,1.14465827,153.53,153.22,1.19870357]
[1740409813261,3.8539,153.54,153.22,1.19870357]
[1740409813464,0.04368773,153.39,153.36,0.04123269]
[1740409813658,3.8288,153.68,153.37,209.86]
[1740409813856,64.95,153.59,153.37,209.86]
[1740409814155,64.95,153.6,153.38,1.30395097]
[1740409814355,64.95,153.59,153.38,77.38213949]
[1740409814558,3.8288,153.68,153.39,1.19750181]
[1740409814559,64.95,153.54,153.39,1.19750181]
[1740409814862,64.99486726,153.5,153.47,0.04675611]
[1740409815061,0.04486726,153.5,153.47,0.04675611]
[1740409815365,3.8288,153.68,153.47,0.04104354]
[1740409815560,64.95,153.63,153.47,0.04104354]
[1740409815761,4.012,153.67,153.47,192.0]
[1740409816161,3.9707,153.78,153.47,192.0]
[1740409816162,3.8992,153.77,153.49,39.16]
[1740409816363,1.14284184,153.76,153.51,19.57]
[1740409816556,3.9707,153.78,153.52,1.19646695]
[1740409816757,0.04378307,153.65,153.61,0.04559633]
[1740409816959,0.04378307,153.65,153.61,192.04559633]
[1740409817167,3.9707,153.78,153.61,192.0]
[1740409817362,0.04973922,153.65,153.61,0.04225578]
[1740409817569,4.012,153.88,153.54,1.19601755]
[1740409817766,4.012,153.88,153.55,1.19601755]
[1740409818071,4.012,153.88,153.56,1.19601755]
[1740409818270,4.012,153.88,153.57,1.19601755]
[1740409818570,64.95,153.87,153.58,1.19601755]
[1740409818766,0.04498426,153.74,153.71,0.0474013]
[1740409819067,4.012,153.88,153.72,170.6]
[1740409819267,4.012,153.88,153.73,170.6]
[1740409819471,0.04132157,153.74,153.73,382.17]
[1740409819669,64.95,153.93,153.73,382.17]
[1740409819870,64.95,153.94,153.74,1.30089761]
[1740409820167,3.9084,153.97,153.74,1.30089761]
[1740409820367,64.95,153.91,153.74,1.30089761]
[1740409820567,3.9795,153.96,153.74,1.30089761]
[1740409820770,59.47330632,153.91,153.74,1.30089761]
[1740409820971,0.04871837,153.84,153.81,0.04755852]
[1740409821363,3.9795,153.96,153.74,1.30089761]
[1740409821561,0.04410647,153.84,153.81,0.04807206]
[1740409821969,3.9795,153.96,153.75,1.19460568]
[1740409822274,0.04358056,153.84,153.81,0.04438131]
[1740409822662,3.9084,153.97,153.82,1.30022103]
[1740409822868,0.04830914,153.84,153.82,193.30022103]
[1740409823073,3.7844,154.12,153.82,1.30022103]
[1740409823277,59.47330632,154.02,153.82,1.30022103]
[1740409823468,59.47330632,153.99,153.82,1.30022103]
[1740409823669,59.47330632,153.98,153.82,1.30022103]
[1740409823969,59.47330632,153.95,153.83,170.34]
[1740409824173,59.47330632,153.93,153.83,170.34]
[1740409824375,0.04827517,153.92,153.88,0.04865716]
[1740409824867,59.47330632,153.91,153.82,1.30022103]
[1740409825075,0.04827517,153.92,153.82,1.30022103]
[1740409825271,1.14045649,154.09,153.82,1.30022103]
[1740409825471,59.47330632,153.98,153.82,1.30022103]
[1740409825869,3.9351,154.1,153.82,1.30022103]
[1740409826073,3.9351,154.1,153.88,0.04434032]
[1740409826074,0.04972345,153.92,153.88,0.04434032]
[1740409826270,59.47330632,153.97,153.82,1.30022103]
[1740409826477,59.47330632,153.95,153.82,1.30022103]
[1740409826672,0.04892043,153.92,153.88,0.04827347]
[1740409827177,0.04742239,153.92,153.88,0.04894871]
[1740409828469,3.9351,154.1,153.88,0.04894871]
[1740409828676,59.47330632,154.01,153.88,0.04894871]
[1740409828977,59.47330632,154.0,153.82,1.30022103]
[1740409829178,59.47330632,153.99,153.83,1.19391619]
[1740409829378,3.9351,154.1,153.82,1.30022103]
[1740409829574,1.14015458,154.09,153.82,1.30022103]
[1740409829876,3.9351,154.1,153.82,1.30022103]
[1740409829877,59.44997879,154.0,153.83,1.19403743]
[1740409830078,59.44997879,153.99,153.84,1.300052]
[1740409830277,59.44997879,154.0,153.84,1.300052]
[1740409830882,3.9351,154.1,153.85,1.19386518]
[1740409831081,0.03044671,153.94,153.9,0.04978319]
[1740409831285,59.44997879,154.01,153.91,170.16]
[1740409831471,0.03044671,153.94,153.91,170.16]
[1740409831673,59.44997879,154.02,153.91,170.16]
[1740409831876,0.03044671,153.94,153.91,170.20551915]
[1740409832187,3.9351,154.1,153.91,170.16]
[1740409832188,59.44997879,153.95,153.91,170.16]
[1740409832386,59.4804255,153.94,153.91,0.05011735]
[1740409832682,59.44997879,153.92,153.82,170.1]
[1740409832884,59.44997879,153.92,153.83,170.1]
[1740409833190,0.72785948,154.28,153.84,1.300052]
[1740409833384,59.44997879,153.96,153.84,1.300052]
[1740409833581,4.0483,154.18,153.84,1.300052]
[1740409833884,0.04759164,153.92,153.88,0.04131228]
[1740409834083,59.44997879,153.99,153.84,1.300052]
[1740409834386,0.04961935,153.92,153.88,0.04130882]
[1740409834883,0.04228822,153.92,153.88,0.047865]
[1740409835179,1.14026078,154.17,153.88,0.047865]
[1740409835484,59.44997879,154.01,153.85,1.19387104]
[1740409835687,59.44997879,154.0,153.86,1.29988301]
[1740409836277,4.0483,154.18,153.86,1.29988301]
[1740409836485,0.03719747,153.95,153.91,0.04530721]
[1740409836682,59.44997879,154.02,153.86,1.29988301]
[1740409836880,0.03719747,153.95,153.91,0.04712999]
[1740409837385,4.0483,154.18,153.87,1.19364646]
[1740409837680,59.44997879,154.03,153.88,1.29971406]
[1740409837883,59.44997879,154.03,154.01,0.04444784]
[1740409838084,4.0483,154.18,153.99,170.02]
[1740409838278,59.44997879,154.04,153.99,170.02]
[1740409838485,59.48717626,154.04,154.0,0.04799145]
[1740409838686,0.03719747,154.04,154.0,0.04799145]
[1740409839188,4.0483,154.18,154.0,0.04799145]
[1740409839583,63.49827879,154.18,153.99,209.18]
[1740409839783,4.0483,154.18,153.99,209.18]
[1740409839984,59.44997879,154.15,154.0,2.49149658]
[1740409840287,59.44997879,154.09,154.07,0.04580006]
[1740409840592,59.44997879,154.13,154.01,169.94]
[1740409840787,63.49827879,154.18,154.02,1.29853265]
[1740409841087,4.0483,154.18,154.02,1.29853265]
[1740409841490,59.44997879,154.17,154.02,1.29853265]
[1740409841690,0.04580006,154.12,154.08,0.04390826]
[1740409842188,0.04580006,154.12,154.08,0.04190662]
[1740409842689,59.44997879,154.09,154.02,1.29853265]
[1740409842884,59.44997879,154.06,154.02,1.29853265]
[1740409843282,4.0483,154.18,154.01,169.94]
[1740409843689,59.44997879,154.14,154.02,1.29853265]
[1740409843881,0.04117734,154.11,154.08,0.04171658]
[1740409844286,59.49115613,154.11,154.02,1.29853265]
[1740409844487,0.04117734,154.11,154.02,1.29853265]
[1740409844690,59.44997879,154.06,154.01,169.94]
[1740409844886,59.44997879,154.04,154.01,169.94]
[1740409845287,4.0246,154.1,154.01,169.94]
[1740409845489,59.44997879,154.02,154.01,163.8043]
[1740409845785,59.44997879,154.03,154.01,139.29082167]
[1740409845985,59.44997879,154.03,154.01,133.15202167]
[1740409846184,0.04556293,154.04,154.01,133.15202167]
[1740409846787,59.49554172,154.04,154.01,133.15202167]
[1740409846986,4.0246,154.1,154.01,116.88362167]
[1740409847190,4.0246,154.1,154.01,0.04172167]
[1740409847490,4.0246,154.1,153.92,169.9]
[1740409848491,0.04438584,154.03,153.99,0.04459279]
[1740409848891,0.04438584,154.03,153.99,0.04126346]
[1740409853495,3.9275,154.16,153.99,1.34004909]
[1740409853694,3.9275,154.16,154.0,1.29870129]
[1740409853894,169.92,154.36,154.0,193.29870129]
[1740409854096,10.18099258,154.35,154.01,1.19256936]
[1740409854391,1.13883619,154.34,154.02,1.29853265]
[1740409854589,0.0353961,154.2,154.16,0.04964033]
[1740409854797,1.13883619,154.34,154.12,169.92]
[1740409855099,0.0353961,154.2,154.16,0.04394473]
[1740409855296,1.13883619,154.34,154.12,169.92]
[1740409855497,0.0353961,154.2,154.16,0.0466395]
[1740409855799,1.13827691,154.34,154.16,0.04154158]
[1740409855996,1.13827691,154.34,154.12,169.92]
[1740409856194,1.13827691,154.34,154.23,0.04450029]
[1740409856398,0.0353961,154.27,154.12,169.92]
[1740409856600,1.13827691,154.34,154.12,169.92]
[1740409856897,0.0353961,154.21,154.18,0.04927338]
[1740409857099,1.13827691,154.34,154.12,8.72969163]
[1740409857296,0.0353961,154.21,154.12,8.72969163]
[1740409857495,7.7464,154.35,154.12,8.72969163]
[1740409857496,1.13873984,154.34,154.12,8.72969163]
[1740409857797,2.43466415,154.33,154.12,8.72969163]
[1740409858099,2.43474813,154.32,154.12,8.72969163]
[1740409858294,0.04128264,154.24,154.21,0.04711685]
[1740409858506,1.13873984,154.31,154.12,8.72969163]
[1740409858998,1.29617627,154.3,154.12,8.72969163]
[1740409859195,1.13873984,154.29,154.12,8.72969163]
[1740409859701,0.04779368,154.22,154.19,0.04246355]
[1740409859901,191.0,154.21,154.05,35.05275914]
[1740409860095,191.0,154.2,154.05,35.05275914]
[1740409860296,1.29617627,154.3,154.05,35.05275914]
[1740409860497,1.13930655,154.29,154.05,35.05275914]
[1740409860693,1.29617627,154.3,154.05,35.05275914]
[1740409860694,1.13943903,154.28,154.05,35.05275914]
[1740409860901,1.13943903,154.29,154.05,35.05275914]
[1740409861100,0.0458582,154.18,154.15,0.04092763]
[1740409861294,2.43578333,154.28,154.1,169.86]
[1740409861500,0.04417992,154.18,154.1,169.86]
[1740409861700,0.04417992,154.18,154.15,0.04154672]
[1740409862401,15.24523473,154.43,154.15,0.04154672]
[1740409862402,3.9751,154.26,154.15,0.04154672]
[1740409862799,101.10106198,154.4,154.1,361.86]
[1740409863003,3.9751,154.39,154.1,401.02]
[1740409863206,3.9751,154.39,154.11,1.29777431]
[1740409863605,0.04444382,154.27,154.23,0.04882564]
[1740409864007,7.976,154.39,154.11,1.29777431]
[1740409864008,1.13810326,154.38,154.11,1.29777431]
[1740409864308,0.04324634,154.27,154.23,0.04786954]
[1740409864510,0.04324634,154.27,154.24,169.8]
[1740409864706,7.976,154.39,154.24,169.8]
[1740409864904,0.04980973,154.27,154.24,169.84339159]
[1740409865105,386.13816311,154.38,154.12,169.8]
[1740409865309,1.13816311,154.37,154.12,169.8]
[1740409865507,385.0,154.36,154.11,1.29777431]
[1740409865803,39.16,154.34,153.99,8.47093345]
[1740409865998,39.16,154.32,154.2,8.92150703]
[1740409866204,0.04390162,154.18,153.71,6.49]
[1740409866405,171.09726924,154.17,153.71,18.30855553]
[1740409866701,169.8,154.32,153.83,39.16]
[1740409866900,2.43551389,154.31,153.92,3.8204]
[1740409867099,1.29617627,154.3,153.93,171.09929188]
[1740409867305,1.29617627,154.3,153.93,178.99889188]
[1740409867506,0.04603675,154.13,154.1,0.04426766]
[1740409868004,4.17526541,154.12,154.1,0.04154456]
[1740409868615,0.04946658,154.13,154.1,0.04154456]
[1740409869006,4.17570515,154.11,154.1,0.04154456]
[1740409869707,0.04946658,154.13,154.1,0.04154456]
[1740409870204,4.17531656,154.12,154.02,169.84]
[1740409870917,4.17531656,154.11,154.02,169.84]
[1740409871420,0.0431084,154.08,154.05,0.04616142]
[1740409871614,385.0,154.07,153.91,266.24282791]
[1740409871815,385.0,154.06,153.91,262.22132791]
[1740409872219,389.17531656,154.05,153.91,262.22132791]
[1740409872417,4.17531656,154.05,153.91,262.22132791]
[1740409872616,4.17531656,154.04,153.91,262.22132791]
[1740409872818,0.04177191,154.0,153.96,0.04697355]
[1740409873017,4.17531656,153.99,153.96,0.04697355]
[1740409873620,4.17531656,153.98,153.96,0.04697355]
[1740409874016,0.04177191,154.0,153.96,0.04697355]
[1740409874221,191.0,154.13,153.96,0.04697355]
[1740409874414,20.88617627,154.3,153.96,0.04697355]
[1740409874612,1.13968334,154.22,153.93,11.5114]
[1740409874812,2.43653199,154.22,153.93,3.718]
[1740409875017,2.43661609,154.21,153.83,169.9]
[1740409875219,20.72968334,154.2,153.84,4.0678]
[1740409875520,0.04383662,154.04,154.0,0.04884286]
[1740409875716,385.0,154.03,153.83,169.9]
[1740409875917,192.14079846,154.02,153.83,169.9]
[1740409876222,1.14079846,154.01,153.83,169.9]
[1740409876420,191.0,154.02,153.83,169.9]
[1740409876819,0.04440985,153.94,153.91,0.04410233]
[1740409877015,191.0,154.0,153.91,0.04410233]
[1740409877216,191.0,153.99,153.83,169.9]
[1740409877422,0.04601291,153.94,153.91,0.04278113]
[1740409877624,191.0,153.98,153.83,169.9]
[1740409877819,0.04306041,153.94,153.91,0.04151069]
[1740409878628,0.04306041,153.94,153.91,0.02031069]
[1740409881125,0.04306041,153.94,153.83,173.6575]
[1740409881326,191.0,153.93,153.73,3.7382]
[1740409881527,386.1408635,153.92,153.73,3.7382]
[1740409881723,1.1408635,153.91,153.7,169.98]
[1740409882029,386.1408635,153.9,153.66,11.6141]
[1740409882221,0.04230322,153.82,153.66,11.6141]
[1740409882422,385.0,153.81,153.61,392.69671837]
[1740409882619,1.1408635,153.8,153.61,392.69671837]
[1740409882829,1.1408635,153.79,153.64,106.90402482]
[1740409883030,170.06,153.86,153.64,106.90402482]
[1740409883224,6.299831,153.85,153.64,106.90402482]
[1740409883431,0.04304172,153.77,153.73,0.04854217]
[1740409883632,1.1408635,153.84,153.64,106.90402482]
[1740409883830,19.59,153.83,153.64,102.75972482]
[1740409884033,1.1408635,153.82,153.64,102.75972482]
[1740409884232,1.1408635,153.81,153.64,102.75972482]
[1740409884531,1.1408635,153.8,153.64,102.75972482]
[1740409884727,0.04388516,153.74,153.71,0.0491313]
[1740409885035,1.1408635,153.78,153.64,102.75972482]
[1740409885330,1.1408635,153.77,153.64,102.75972482]
[1740409885531,1.1408635,153.76,153.64,102.75972482]
[1740409885729,1.1408635,153.75,153.64,102.75972482]
[1740409885930,1.1408635,153.74,153.47,11.4705]
[1740409886125,171.3208635,153.73,153.47,11.4705]
[1740409886323,0.04738174,153.71,153.47,11.4705]
[1740409886525,1.30123617,153.7,153.47,11.4705]
[1740409886722,1.1408635,153.69,153.47,11.4705]
[1740409886922,386.30140551,153.68,153.47,11.4705]
[1740409887233,1.1408635,153.67,153.32,348.3533747]
[1740409887434,0.04761381,153.59,153.33,11.699]
[1740409887731,1.30140551,153.68,153.33,11.699]
[1740409887732,1.1408635,153.65,153.33,11.699]
[1740409887931,1.1408635,153.64,153.33,11.699]
[1740409888126,1.14433329,153.63,153.33,11.699]
[1740409888327,1.14433329,153.67,153.33,11.699]
[1740409888530,1.14433329,153.67,153.33,13.00337618]
[1740409888730,0.04695108,153.52,153.48,0.04671461]
[1740409888931,1.14433329,153.67,153.47,170.32]
[1740409889932,1.14433329,153.67,153.48,7.7502]
[1740409890127,0.04164768,153.59,153.55,0.04670996]
[1740409890532,191.0,153.66,153.48,7.7502]
[1740409890729,0.0417808,153.59,153.55,0.04505563]
[1740409891236,0.04608147,153.59,153.55,0.04755323]
[1740409892233,191.0,153.58,153.38,170.38]
[1740409892533,403.72661898,153.57,153.34,7.7147]
[1740409892737,1.14428129,153.56,153.34,7.7147]
[1740409893128,1.30250732,153.55,153.34,7.7147]
[1740409893333,0.04425488,153.47,153.43,0.04889075]
[1740409893530,191.0,153.46,153.43,0.04889075]
[1740409893734,191.0,153.46,153.34,7.7147]
[1740409893935,0.04578896,153.46,153.43,0.04637475]
[1740409894135,1.14464345,153.54,153.35,3.7322]
[1740409894336,0.04292918,153.46,153.43,0.04960109]
[1740409894536,191.0,153.53,153.35,3.7322]
[1740409894730,0.0468303,153.46,153.35,3.7322]
[1740409895135,0.04229931,153.42,153.39,0.04535475]
[1740409895335,1.14458086,153.5,153.35,3.7322]
[1740409895639,0.04444911,153.42,153.39,0.04328529]
[1740409895836,1.14458086,153.5,153.39,0.04328529]
[1740409896139,1.14458086,153.5,153.35,3.7322]
[1740409896338,191.0,153.51,153.35,3.7322]
[1740409896842,191.0,153.51,153.36,16.14]
[1740409897041,0.04833464,153.45,153.41,0.0440766]
[1740409897237,192.14399392,153.57,153.42,170.46]
[1740409897431,191.0,153.56,153.42,170.46]
[1740409897834,191.0,153.55,153.42,170.46]
[1740409898340,0.04232155,153.5,153.47,0.04127949]
[1740409898534,191.0,153.55,153.47,0.04127949]
[1740409898736,178.6766,153.65,153.47,0.04127949]
[1740409899034,1.14354022,153.64,153.42,170.46]
[1740409899336,178.6766,153.63,153.42,170.46]
[1740409899739,0.04562515,153.54,153.51,0.04138151]
[1740409900041,178.6766,153.63,153.48,16.06]
[1740409900640,172.5143,153.63,153.48,16.06]
[1740409900936,172.5143,153.74,153.49,1.30301648]
[1740409901136,16.04,153.77,153.54,0.04277378]
[1740409901336,1.14265815,153.76,153.55,170.48]
[1740409902032,172.5143,153.75,153.55,170.48]
[1740409902238,172.5143,153.74,153.55,170.48]
[1740409902437,0.04301077,153.67,153.63,0.04410739]
[1740409902841,1.14255772,153.8,153.56,4.0985]
[1740409903139,2.44294783,153.8,153.63,0.04232314]
[1740409903335,2.44294783,153.8,153.56,4.0985]
[1740409903540,1.14255772,153.79,153.56,4.0985]
[1740409904042,0.04793257,153.69,153.56,4.0985]
[1740409904243,16.0,153.68,153.39,170.44]
[1740409904441,3.9812,153.67,153.47,4.0075]
[1740409904642,1.14379955,153.66,153.47,4.0075]
[1740409904838,1.14379955,153.66,153.39,170.44]
[1740409905036,1.14379955,153.66,153.4,4.0075]
[1740409905442,0.0455078,153.54,153.51,0.04919044]
[1740409905639,1.14379955,153.66,153.51,0.04919044]
[1740409905834,1.14379955,153.66,153.44,16.02]
[1740409906040,3.9812,153.67,153.44,16.02]
[1740409906235,1.14371212,153.66,153.44,16.02]
[1740409906741,0.04854126,153.57,153.53,0.04983163]
[1740409906942,16.02,153.71,153.54,170.46]
[1740409906943,1.14317717,153.69,153.54,170.46]
[1740409907241,16.02,153.71,153.55,7.5946]
[1740409907438,1.1431653,153.7,153.55,7.5946]
[1740409907643,17.24039011,153.8,153.55,7.5946]
[1740409907939,1.14272283,153.79,153.55,7.5946]
[1740409908145,0.04170403,153.69,153.66,0.04257701]
[1740409908339,1.14272283,153.79,153.66,0.04257701]
[1740409908546,1.14272283,153.87,153.65,3.8203]
[1740409908740,1.29979853,153.87,153.65,3.8203]
[1740409908949,1.14218392,153.86,153.66,3.7567]
[1740409909146,1.14218392,153.86,153.67,170.46]
[1740409909343,173.65648392,153.86,153.67,170.46]
[1740409909541,0.04732675,153.78,153.75,0.04297249]
[1740409909749,3.9987,153.95,153.75,0.04297249]
[1740409909945,1.141772,153.94,153.76,15.92]
[1740409910143,67.88320431,153.99,153.77,3.8203]
[1740409910347,67.88320431,153.99,153.49,6.49]
[1740409910542,67.88320431,153.99,153.5,3.8203]
[1740409910543,435.91756998,153.98,153.5,3.8203]
[1740409910744,20.88895434,153.97,153.51,1.30284672]
[1740409910943,0.04142566,153.76,153.72,0.04388622]
[1740409911145,244.0,153.75,153.51,1.30284672]
[1740409911345,247.9987,153.75,153.51,1.30284672]
[1740409911547,247.9987,153.75,153.5,3.8203]
[1740409911743,3.9987,153.75,153.51,170.4]
[1740409911951,1.13438698,153.74,153.51,170.4]
[1740409912345,0.04380492,153.64,153.61,0.04717387]
[1740409912552,1.13438698,153.74,153.51,170.4]
[1740409912849,3.9987,153.75,153.51,170.4]
[1740409912850,3.9987,153.75,153.56,0.04396773]
[1740409913047,2.76297077,153.74,153.51,170.4]
[1740409913349,1.62860662,153.73,153.51,170.4]
[1740409913552,3.9987,153.75,153.52,3.8157]
[1740409913750,1.6285267,153.74,153.52,3.8157]
[1740409914051,0.04180905,153.65,153.61,0.04618845]
[1740409914247,0.04180905,153.65,153.52,3.8157]
[1740409914454,3.9987,153.75,153.61,0.04158569]
[1740409914746,0.04760474,153.6,153.52,3.8157]
[1740409915053,3.9987,153.75,153.52,3.8157]
[1740409915353,350.27692034,153.74,153.53,3.7836]
[1740409915549,2.93001649,153.73,153.53,3.7836]
[1740409915751,350.27743022,153.72,153.53,3.7836]
[1740409915949,2.76313022,153.71,153.5,3.8203]
[1740409916149,0.047988,153.64,153.61,0.05010783]
[1740409916455,174.14356376,153.63,153.5,3.8203]
[1740409916751,174.14358566,153.62,153.5,3.8203]
[1740409916944,172.5143,153.62,153.5,3.8203]
[1740409917139,172.5143,153.61,153.5,3.8203]
[1740409917351,347.5143,153.6,153.47,3.7862]
[1740409917541,0.04855868,153.57,153.54,0.04871884]
[1740409917750,174.14380923,153.56,153.47,3.7862]
[1740409917950,172.5143,153.55,153.47,3.7862]
[1740409918651,172.5143,153.59,153.47,3.7862]
[1740409918852,4.0958,153.7,153.49,0.04932222]
[1740409919051,1.62895342,153.69,153.5,170.46]
[1740409919247,1.62895342,153.68,153.51,3.7611]
[1740409919654,1.62895342,153.67,153.51,3.7611]
[1740409919857,1.62895342,153.66,153.51,3.7611]
[1740409920055,1.62895342,153.65,153.51,3.7611]
[1740409920250,0.0410565,153.61,153.57,0.04442693]
[1740409920451,1.62895342,153.6,153.57,0.04442693]
[1740409920650,1.62895342,153.6,153.51,3.7611]
[1740409920849,1.62895342,153.59,153.57,0.04171933]
[1740409922356,0.04227371,153.6,153.57,0.04171933]
[1740409922653,1.62895717,153.59,153.57,0.04171933]
[1740409922957,2.7636532,153.58,153.35,170.48]
[1740409923145,175.2779532,153.57,153.38,7.8696]
[1740409923351,175.2779532,153.56,153.38,7.8696]
[1740409923546,1.62895717,153.55,153.38,7.8696]
[1740409923750,1.62895717,153.54,153.38,7.8696]
[1740409923956,174.14325717,153.53,153.38,7.8696]
[1740409924257,0.04158338,153.48,153.45,0.04260519]
[1740409924553,174.14325717,153.47,153.38,7.8696]
[1740409924859,0.04349901,153.45,153.41,0.04924119]
[1740409925055,1.62895717,153.44,153.41,0.04924119]
[1740409925557,1.62895717,153.43,153.41,0.04924119]
[1740409925758,1.62895717,153.42,153.41,0.04924119]
[1740409926156,172.5143,153.44,153.41,0.04924119]
[1740409926356,172.5143,153.44,153.3,7.5256]
[1740409926952,348.65063848,153.43,153.28,127.75070983]
[1740409927152,348.65063848,153.42,153.28,123.83880983]
[1740409927352,348.65063848,153.41,153.25,170.5]
[1740409927553,0.04947176,153.37,153.34,0.04295345]
[1740409927756,172.5143,153.36,153.25,170.5]
[1740409927958,172.5143,153.35,153.25,170.5]
[1740409928257,172.5143,153.35,153.26,3.7338]
[1740409928759,172.5143,153.45,153.27,7.8072]
[1740409928955,0.04833141,153.32,153.29,0.05006624]
[1740409929160,175.0,153.46,153.27,7.8072]
[1740409929161,172.5143,153.48,153.27,7.8072]
[1740409929360,1.13601024,153.47,153.27,7.8072]
[1740409929554,172.5143,153.46,153.27,7.8072]
[1740409929765,1.13609988,153.45,153.27,7.8072]
[1740409930252,172.5143,153.46,153.27,7.8072]
[1740409930449,0.05008159,153.38,153.34,0.04401314]